Workbook

Sheet Cálculador cuota
H3: VTU Libranza
S4: REAL | T4: 30 | U4: 59
S5: GRUPO COLPATRIA | T5: 30 | U5: 59
S6: OFICIAL | T6: 60 | U6: 89
S7: EDUCACIÓN PÚBLICA | T7: 90 | U7: 119
D8: SECTOR | G8: GRUPO COLPATRIA | S8: FUERZAS MILITARES | T8: 90 | U8: 119
D9: =VLOOKUP(G8,#REF!,2,0) ->  | S9: POLICIA | T9: 90 | U9: 119
D10: Valor solicitado | G10: 18000000 | S10: PENSIONADOS | T10: 90 | U10: 119
D11: % Tasa E.A. | G11: =EFFECT(H12,12) -> 0.1268250301 | S11: POLICIA | T11: 90 | U11: 119
D12: % Tasa NM | G12: 0.01 | H12: =+G12*12 -> 0.12
D13: Plazo | G13: 30
D14: Cuota | G14: 704141.4554
D15: Cuota + Seguro | G15: =IFERROR(IF(AND(VLOOKUP(Plazo,$B$27:$I$322,8,0)>-1,(VLOOKUP(Plazo,$B$27:$I$322,8,0)<1)),ROUND((G10*0.0012)+G14,0),0),0) -> 725741
D16: Total crédito | G16: =IFERROR(G15*Plazo,0) -> 21772230
D17: Desplazamiento convenio | G17: =VLOOKUP(G8,$S$4:$U$11,2,0) -> 30
D19: VTU % E.A. | G19: =IFERROR(EFFECT(N24,12)," ") -> 0.1640958973
D20: VTU Resultante en pesos | G20: =SUM(M27:M1048576) -> 21772230
B22: Días | D22: =VLOOKUP(G8,$S$4:$U$11,3,0) -> 59
M24: =IRR(M26:M1048576) -> 0.01274256431 | N24: =M24*12 -> 0.1529107717
A26: No. Cuota | B26: No. cuota | D26: Valor Cuota | E26: Interés x | F26: Capital x | G26: Interés | H26: Capital | I26: Saldo | M26: =+G10*(-1) -> -18000000
A27: 1 | B27: 1 | D27: =+G14 -> 704141.4554 | E27: =+(G10*G12)/30*D22 -> 354000 | F27: =+D27-E27 -> 350141.4554 | G27: =IF(E27>D27,D27,E27) -> 354000 | H27: =IF(F27<0,0,(D27-E27)) -> 350141.4554 | I27: =+G10-H27 -> 17649858.54 | M27: =IF(I27<-1,0,CuotaSeg) -> 725741
A28: 2 | B28: 2 | D28: =+D27 -> 704141.4554 | E28: =+I27*$G$12 -> 176498.5854 | F28: =+D28-G28 -> 527642.87 | G28: =IF(F27<0,E28-F27,E28) -> 176498.5854 | H28: =IF(F28<0,0,(D28-G28)) -> 527642.87 | I28: =+I27-H28 -> 17122215.67 | M28: 725741
A29: 3 | B29: 3 | D29: =+D28 -> 704141.4554 | E29: =+I28*$G$12 -> 171222.1567 | F29: =+D29-G29 -> 532919.2987 | G29: =IF(F28<0,E29-F28,E29) -> 171222.1567 | H29: =IF(F29<0,0,(D29-G29)) -> 532919.2987 | I29: =+I28-H29 -> 16589296.38 | M29: 725741
A30: 4 | B30: 4 | D30: =+D29 -> 704141.4554 | E30: =+I29*$G$12 -> 165892.9638 | F30: =+D30-G30 -> 538248.4916 | G30: =IF(F29<0,E30-F29,E30) -> 165892.9638 | H30: =IF(F30<0,0,(D30-G30)) -> 538248.4916 | I30: =+I29-H30 -> 16051047.88 | M30: 725741
A31: 5 | B31: 5 | D31: 704141.4554 | E31: =+I30*$G$12 -> 160510.4788 | F31: =+D31-G31 -> 543630.9766 | G31: =IF(F30<0,E31-F30,E31) -> 160510.4788 | H31: 543630.9766 | I31: 15507416.91 | M31: 725741
A32: 6 | B32: 6 | D32: 704141.4554 | E32: 155074.1691 | F32: =+D32-G32 -> 549067.2863 | G32: 155074.1691 | H32: 549067.2863 | I32: 14958349.62 | M32: 725741
A33: 7 | B33: 7 | D33: 704141.4554 | E33: =+I32*$G$12 -> 149583.4962 | F33: =+D33-G33 -> 554557.9592 | G33: =IF(F32<0,E33-F32,E33) -> 149583.4962 | H33: 554557.9592 | I33: 14403791.66 | M33: 725741
A34: 8 | B34: 8 | D34: 704141.4554 | E34: 144037.9166 | F34: 560103.5388 | G34: 144037.9166 | H34: 560103.5388 | I34: 13843688.12 | M34: 725741
A35: 9 | B35: 9 | D35: 704141.4554 | E35: 138436.8812 | F35: =+D35-G35 -> 565704.5742 | G35: 138436.8812 | H35: 565704.5742 | I35: 13277983.55 | M35: 725741
A36: 10 | B36: 10 | D36: 704141.4554 | E36: 132779.8355 | F36: =+D36-G36 -> 571361.6199 | G36: 132779.8355 | H36: 571361.6199 | I36: 12706621.93 | M36: 725741
A37: 11 | B37: 11 | D37: 704141.4554 | E37: 127066.2193 | F37: =+D37-G37 -> 577075.2361 | G37: 127066.2193 | H37: 577075.2361 | I37: 12129546.69 | M37: 725741
A38: 12 | B38: 12 | D38: 704141.4554 | E38: 121295.4669 | F38: =+D38-G38 -> 582845.9885 | G38: 121295.4669 | H38: 582845.9885 | I38: 11546700.7 | M38: 725741
A39: 13 | B39: 13 | D39: 704141.4554 | E39: 115467.007 | F39: 588674.4484 | G39: 115467.007 | H39: 588674.4484 | I39: 10958026.26 | M39: 725741
A40: 14 | B40: 14 | D40: 704141.4554 | E40: =+I39*$G$12 -> 109580.2626 | F40: =+D40-G40 -> 594561.1928 | G40: 109580.2626 | H40: 594561.1928 | I40: 10363465.06 | M40: 725741
A41: 15 | B41: 15 | D41: 704141.4554 | E41: 103634.6506 | F41: 600506.8048 | G41: 103634.6506 | H41: 600506.8048 | I41: 9762958.259 | M41: 725741
A42: 16 | B42: 16 | D42: 704141.4554 | E42: 97629.58259 | F42: 606511.8728 | G42: 97629.58259 | H42: 606511.8728 | I42: 9156446.386 | M42: 725741
A43: 17 | B43: 17 | D43: 704141.4554 | E43: 91564.46386 | F43: 612576.9916 | G43: 91564.46386 | H43: 612576.9916 | I43: 8543869.394 | M43: 725741
A44: 18 | B44: 18 | D44: 704141.4554 | E44: 85438.69394 | F44: 618702.7615 | G44: 85438.69394 | H44: 618702.7615 | I44: 7925166.633 | M44: 725741
A45: 19 | B45: 19 | D45: 704141.4554 | E45: 79251.66633 | F45: 624889.7891 | G45: 79251.66633 | H45: 624889.7891 | I45: 7300276.844 | M45: 725741
A46: 20 | B46: 20 | D46: 704141.4554 | E46: 73002.76844 | F46: 631138.687 | G46: 73002.76844 | H46: 631138.687 | I46: 6669138.157 | M46: 725741
A47: 21 | B47: 21 | D47: 704141.4554 | E47: 66691.38157 | F47: 637450.0738 | G47: 66691.38157 | H47: 637450.0738 | I47: 6031688.083 | M47: 725741
A48: 22 | B48: 22 | D48: 704141.4554 | E48: 60316.88083 | F48: 643824.5746 | G48: 60316.88083 | H48: 643824.5746 | I48: 5387863.508 | M48: 725741
A49: 23 | B49: 23 | D49: 704141.4554 | E49: 53878.63508 | F49: 650262.8203 | G49: 53878.63508 | H49: 650262.8203 | I49: 4737600.688 | M49: 725741
A50: 24 | B50: 24 | D50: 704141.4554 | E50: 47376.00688 | F50: 656765.4485 | G50: 47376.00688 | H50: 656765.4485 | I50: 4080835.24 | M50: 725741
A51: 25 | B51: 25 | D51: 704141.4554 | E51: 40808.3524 | F51: 663333.103 | G51: 40808.3524 | H51: 663333.103 | I51: 3417502.137 | M51: 725741
A52: 26 | B52: 26 | D52: 704141.4554 | E52: 34175.02137 | F52: 669966.434 | G52: 34175.02137 | H52: 669966.434 | I52: 2747535.703 | M52: 725741
A53: 27 | B53: 27 | D53: 704141.4554 | E53: 27475.35703 | F53: 676666.0984 | G53: 27475.35703 | H53: 676666.0984 | I53: 2070869.604 | M53: 725741
A54: 28 | B54: 28 | D54: 704141.4554 | E54: 20708.69604 | F54: 683432.7594 | G54: 20708.69604 | H54: 683432.7594 | I54: 1387436.845 | M54: 725741
A55: 29 | B55: 29 | D55: 704141.4554 | E55: 13874.36845 | F55: 690267.087 | G55: 13874.36845 | H55: 690267.087 | I55: 697169.7578 | M55: 725741
A56: 30 | B56: 30 | D56: 704141.4554 | E56: 6971.697578 | F56: 697169.7578 | G56: 6971.697578 | H56: 697169.7578 | I56: 1.420266926e-08 | M56: 725741
A57: 31 | B57: 31 | D57: 704141.4554 | E57: 1.420266926e-10 | F57: 704141.4554 | G57: 1.420266926e-10 | H57: 704141.4554 | I57: -704141.4554 | M57: 0
A58: 32 | B58: 32 | D58: 704141.4554 | E58: -7041.414554 | F58: 711182.87 | G58: -7041.414554 | H58: 711182.87 | I58: -1415324.325 | M58: 0
A59: 33 | B59: 33 | D59: 704141.4554 | E59: -14153.24325 | F59: 718294.6987 | G59: -14153.24325 | H59: 718294.6987 | I59: -2133619.024 | M59: =IF(I59<-1,0,CuotaSeg) -> 0
A60: 34 | B60: 34 | D60: 704141.4554 | E60: -21336.19024 | F60: 725477.6456 | G60: -21336.19024 | H60: 725477.6456 | I60: -2859096.67 | M60: 0
A61: 35 | B61: 35 | D61: 704141.4554 | E61: -28590.9667 | F61: 732732.4221 | G61: -28590.9667 | H61: 732732.4221 | I61: -3591829.092 | M61: 0
A62: 36 | B62: 36 | D62: 704141.4554 | E62: -35918.29092 | F62: 740059.7463 | G62: -35918.29092 | H62: 740059.7463 | I62: -4331888.838 | M62: 0
A63: 37 | B63: 37 | D63: 704141.4554 | E63: -43318.88838 | F63: 747460.3438 | G63: -43318.88838 | H63: 747460.3438 | I63: -5079349.182 | M63: 0
A64: 38 | B64: 38 | D64: 704141.4554 | E64: -50793.49182 | F64: 754934.9472 | G64: -50793.49182 | H64: 754934.9472 | I64: -5834284.129 | M64: 0
A65: 39 | B65: 39 | D65: 704141.4554 | E65: -58342.84129 | F65: 762484.2967 | G65: -58342.84129 | H65: 762484.2967 | I65: -6596768.426 | M65: 0
A66: 40 | B66: 40 | D66: 704141.4554 | E66: -65967.68426 | F66: 770109.1397 | G66: -65967.68426 | H66: 770109.1397 | I66: -7366877.566 | M66: 0
A67: 41 | B67: 41 | D67: 704141.4554 | E67: -73668.77566 | F67: 777810.2311 | G67: -73668.77566 | H67: 777810.2311 | I67: -8144687.797 | M67: 0
A68: 42 | B68: 42 | D68: 704141.4554 | E68: -81446.87797 | F68: 785588.3334 | G68: -81446.87797 | H68: 785588.3334 | I68: -8930276.13 | M68: 0
A69: 43 | B69: 43 | D69: 704141.4554 | E69: -89302.7613 | F69: 793444.2167 | G69: -89302.7613 | H69: 793444.2167 | I69: -9723720.347 | M69: 0
A70: 44 | B70: 44 | D70: 704141.4554 | E70: -97237.20347 | F70: 801378.6589 | G70: -97237.20347 | H70: 801378.6589 | I70: -10525099.01 | M70: 0
A71: 45 | B71: 45 | D71: 704141.4554 | E71: -105250.9901 | F71: 809392.4455 | G71: -105250.9901 | H71: 809392.4455 | I71: -11334491.45 | M71: 0
A72: 46 | B72: 46 | D72: 704141.4554 | E72: -113344.9145 | F72: 817486.3699 | G72: -113344.9145 | H72: 817486.3699 | I72: -12151977.82 | M72: 0
A73: 47 | B73: 47 | D73: 704141.4554 | E73: -121519.7782 | F73: 825661.2336 | G73: -121519.7782 | H73: 825661.2336 | I73: -12977639.05 | M73: 0
A74: 48 | B74: 48 | D74: 704141.4554 | E74: -129776.3905 | F74: 833917.846 | G74: -129776.3905 | H74: 833917.846 | I74: -13811556.9 | M74: 0
A75: 49 | B75: 49 | D75: 704141.4554 | E75: -138115.569 | F75: 842257.0244 | G75: -138115.569 | H75: 842257.0244 | I75: -14653813.92 | M75: 0
A76: 50 | B76: 50 | D76: 704141.4554 | E76: -146538.1392 | F76: 850679.5947 | G76: -146538.1392 | H76: 850679.5947 | I76: -15504493.52 | M76: 0
A77: 51 | B77: 51 | D77: 704141.4554 | E77: -155044.9352 | F77: 859186.3906 | G77: -155044.9352 | H77: 859186.3906 | I77: -16363679.91 | M77: 0
A78: 52 | B78: 52 | D78: 704141.4554 | E78: -163636.7991 | F78: 867778.2545 | G78: -163636.7991 | H78: 867778.2545 | I78: -17231458.16 | M78: 0
A79: 53 | B79: 53 | D79: 704141.4554 | E79: -172314.5816 | F79: 876456.0371 | G79: -172314.5816 | H79: 876456.0371 | I79: -18107914.2 | M79: 0
A80: 54 | B80: 54 | D80: 704141.4554 | E80: -181079.142 | F80: 885220.5974 | G80: -181079.142 | H80: 885220.5974 | I80: -18993134.8 | M80: 0
A81: 55 | B81: 55 | D81: 704141.4554 | E81: -189931.348 | F81: 894072.8034 | G81: -189931.348 | H81: 894072.8034 | I81: -19887207.6 | M81: 0
A82: 56 | B82: 56 | D82: 704141.4554 | E82: -198872.076 | F82: 903013.5314 | G82: -198872.076 | H82: 903013.5314 | I82: -20790221.13 | M82: 0
A83: 57 | B83: 57 | D83: 704141.4554 | E83: -207902.2113 | F83: 912043.6667 | G83: -207902.2113 | H83: 912043.6667 | I83: -21702264.8 | M83: 0
A84: 58 | B84: 58 | D84: 704141.4554 | E84: -217022.648 | F84: 921164.1034 | G84: -217022.648 | H84: 921164.1034 | I84: -22623428.9 | M84: 0
A85: 59 | B85: 59 | D85: 704141.4554 | E85: -226234.289 | F85: 930375.7445 | G85: -226234.289 | H85: 930375.7445 | I85: -23553804.65 | M85: 0
A86: 60 | B86: 60 | D86: 704141.4554 | E86: -235538.0465 | F86: 939679.5019 | G86: -235538.0465 | H86: 939679.5019 | I86: -24493484.15 | M86: 0
A87: 61 | B87: 61 | D87: 704141.4554 | E87: -244934.8415 | F87: 949076.2969 | G87: -244934.8415 | H87: 949076.2969 | I87: -25442560.45 | M87: 0
A88: 62 | B88: 62 | D88: 704141.4554 | E88: -254425.6045 | F88: 958567.0599 | G88: -254425.6045 | H88: 958567.0599 | I88: -26401127.51 | M88: 0
A89: 63 | B89: 63 | D89: 704141.4554 | E89: -264011.2751 | F89: 968152.7305 | G89: -264011.2751 | H89: 968152.7305 | I89: -27369280.24 | M89: 0
A90: 64 | B90: 64 | D90: 704141.4554 | E90: -273692.8024 | F90: 977834.2578 | G90: -273692.8024 | H90: 977834.2578 | I90: -28347114.5 | M90: 0
A91: 65 | B91: 65 | D91: 704141.4554 | E91: -283471.145 | F91: 987612.6004 | G91: -283471.145 | H91: 987612.6004 | I91: -29334727.1 | M91: =IF(I91<-1,0,CuotaSeg) -> 0
A92: 66 | B92: 66 | D92: 704141.4554 | E92: =+I91*$G$12 -> -293347.271 | F92: =+D92-G92 -> 997488.7264 | G92: =IF(F91<0,E92-F91,E92) -> -293347.271 | H92: =IF(F92<0,0,(D92-G92)) -> 997488.7264 | I92: =+I91-H92 -> -30332215.82 | M92: 0
A93: 67 | B93: 67 | D93: =+D92 -> 704141.4554 | E93: -303322.1582 | F93: 1007463.614 | G93: -303322.1582 | H93: 1007463.614 | I93: -31339679.44 | M93: 0
A94: 68 | B94: 68 | D94: 704141.4554 | E94: -313396.7944 | F94: 1017538.25 | G94: -313396.7944 | H94: 1017538.25 | I94: -32357217.69 | M94: 0
A95: 69 | B95: 69 | D95: 704141.4554 | E95: -323572.1769 | F95: 1027713.632 | G95: -323572.1769 | H95: 1027713.632 | I95: -33384931.32 | M95: 0
A96: 70 | B96: 70 | D96: 704141.4554 | E96: -333849.3132 | F96: 1037990.769 | G96: -333849.3132 | H96: 1037990.769 | I96: -34422922.09 | M96: 0
A97: 71 | B97: 71 | D97: 704141.4554 | E97: -344229.2209 | F97: 1048370.676 | G97: -344229.2209 | H97: 1048370.676 | I97: -35471292.76 | M97: 0
A98: 72 | B98: 72 | D98: 704141.4554 | E98: -354712.9276 | F98: 1058854.383 | G98: -354712.9276 | H98: 1058854.383 | I98: -36530147.15 | M98: 0
A99: 73 | B99: 73 | D99: 704141.4554 | E99: -365301.4715 | F99: 1069442.927 | G99: -365301.4715 | H99: 1069442.927 | I99: -37599590.07 | M99: 0
A100: 74 | B100: 74 | D100: 704141.4554 | E100: -375995.9007 | F100: 1080137.356 | G100: -375995.9007 | H100: 1080137.356 | I100: -38679727.43 | M100: 0
A101: 75 | B101: 75 | D101: 704141.4554 | E101: -386797.2743 | F101: 1090938.73 | G101: -386797.2743 | H101: 1090938.73 | I101: -39770666.16 | M101: 0
A102: 76 | B102: 76 | D102: 704141.4554 | E102: -397706.6616 | F102: 1101848.117 | G102: -397706.6616 | H102: 1101848.117 | I102: -40872514.28 | M102: 0
A103: 77 | B103: 77 | D103: 704141.4554 | E103: -408725.1428 | F103: 1112866.598 | G103: -408725.1428 | H103: 1112866.598 | I103: -41985380.87 | M103: 0
A104: 78 | B104: 78 | D104: 704141.4554 | E104: -419853.8087 | F104: 1123995.264 | G104: -419853.8087 | H104: 1123995.264 | I104: -43109376.14 | M104: 0
A105: 79 | B105: 79 | D105: 704141.4554 | E105: -431093.7614 | F105: 1135235.217 | G105: -431093.7614 | H105: 1135235.217 | I105: -44244611.35 | M105: 0
A106: 80 | B106: 80 | D106: 704141.4554 | E106: -442446.1135 | F106: 1146587.569 | G106: -442446.1135 | H106: 1146587.569 | I106: -45391198.92 | M106: 0
A107: 81 | B107: 81 | D107: 704141.4554 | E107: -453911.9892 | F107: 1158053.445 | G107: -453911.9892 | H107: 1158053.445 | I107: -46549252.37 | M107: 0
A108: 82 | B108: 82 | D108: 704141.4554 | E108: -465492.5237 | F108: 1169633.979 | G108: -465492.5237 | H108: 1169633.979 | I108: -47718886.35 | M108: 0
A109: 83 | B109: 83 | D109: 704141.4554 | E109: -477188.8635 | F109: 1181330.319 | G109: -477188.8635 | H109: 1181330.319 | I109: -48900216.67 | M109: 0
A110: 84 | B110: 84 | D110: 704141.4554 | E110: -489002.1667 | F110: 1193143.622 | G110: -489002.1667 | H110: 1193143.622 | I110: -50093360.29 | M110: 0
A111: 85 | B111: 85 | D111: 704141.4554 | E111: -500933.6029 | F111: 1205075.058 | G111: -500933.6029 | H111: 1205075.058 | I111: -51298435.35 | M111: 0
A112: 86 | B112: 86 | D112: 704141.4554 | E112: -512984.3535 | F112: 1217125.809 | G112: -512984.3535 | H112: 1217125.809 | I112: -52515561.16 | M112: 0
A113: 87 | B113: 87 | D113: 704141.4554 | E113: -525155.6116 | F113: 1229297.067 | G113: -525155.6116 | H113: 1229297.067 | I113: -53744858.22 | M113: 0
A114: 88 | B114: 88 | D114: 704141.4554 | E114: -537448.5822 | F114: 1241590.038 | G114: -537448.5822 | H114: 1241590.038 | I114: -54986448.26 | M114: 0
A115: 89 | B115: 89 | D115: 704141.4554 | E115: -549864.4826 | F115: 1254005.938 | G115: -549864.4826 | H115: 1254005.938 | I115: -56240454.2 | M115: 0
A116: 90 | B116: 90 | D116: 704141.4554 | E116: -562404.542 | F116: 1266545.997 | G116: -562404.542 | H116: 1266545.997 | I116: -57507000.2 | M116: 0
A117: 91 | B117: 91 | D117: 704141.4554 | E117: -575070.002 | F117: 1279211.457 | G117: -575070.002 | H117: 1279211.457 | I117: -58786211.65 | M117: 0
A118: 92 | B118: 92 | D118: 704141.4554 | E118: -587862.1165 | F118: 1292003.572 | G118: -587862.1165 | H118: 1292003.572 | I118: -60078215.22 | M118: 0
A119: 93 | B119: 93 | D119: 704141.4554 | E119: -600782.1522 | F119: 1304923.608 | G119: -600782.1522 | H119: 1304923.608 | I119: -61383138.83 | M119: 0
A120: 94 | B120: 94 | D120: 704141.4554 | E120: -613831.3883 | F120: 1317972.844 | G120: -613831.3883 | H120: 1317972.844 | I120: -62701111.68 | M120: 0
A121: 95 | B121: 95 | D121: 704141.4554 | E121: -627011.1168 | F121: 1331152.572 | G121: -627011.1168 | H121: 1331152.572 | I121: -64032264.25 | M121: 0
A122: 96 | B122: 96 | D122: 704141.4554 | E122: -640322.6425 | F122: 1344464.098 | G122: -640322.6425 | H122: 1344464.098 | I122: -65376728.35 | M122: 0
A123: 97 | B123: 97 | D123: 704141.4554 | E123: -653767.2835 | F123: 1357908.739 | G123: -653767.2835 | H123: 1357908.739 | I123: -66734637.09 | M123: =IF(I123<-1,0,CuotaSeg) -> 0
A124: 98 | B124: 98 | D124: 704141.4554 | E124: -667346.3709 | F124: 1371487.826 | G124: -667346.3709 | H124: 1371487.826 | I124: -68106124.91 | M124: 0
A125: 99 | B125: 99 | D125: 704141.4554 | E125: -681061.2491 | F125: 1385202.705 | G125: -681061.2491 | H125: 1385202.705 | I125: -69491327.62 | M125: 0
A126: 100 | B126: 100 | D126: 704141.4554 | E126: -694913.2762 | F126: 1399054.732 | G126: -694913.2762 | H126: 1399054.732 | I126: -70890382.35 | M126: 0
A127: 101 | B127: 101 | D127: 704141.4554 | E127: -708903.8235 | F127: 1413045.279 | G127: -708903.8235 | H127: 1413045.279 | I127: -72303427.63 | M127: 0
A128: 102 | B128: 102 | D128: 704141.4554 | E128: -723034.2763 | F128: 1427175.732 | G128: -723034.2763 | H128: 1427175.732 | I128: -73730603.36 | M128: 0
A129: 103 | B129: 103 | D129: 704141.4554 | E129: -737306.0336 | F129: 1441447.489 | G129: -737306.0336 | H129: 1441447.489 | I129: -75172050.85 | M129: 0
A130: 104 | B130: 104 | D130: 704141.4554 | E130: -751720.5085 | F130: 1455861.964 | G130: -751720.5085 | H130: 1455861.964 | I130: -76627912.81 | M130: 0
A131: 105 | B131: 105 | D131: 704141.4554 | E131: -766279.1281 | F131: 1470420.584 | G131: -766279.1281 | H131: 1470420.584 | I131: -78098333.39 | M131: 0
A132: 106 | B132: 106 | D132: 704141.4554 | E132: -780983.3339 | F132: 1485124.789 | G132: -780983.3339 | H132: 1485124.789 | I132: -79583458.18 | M132: 0
A133: 107 | B133: 107 | D133: 704141.4554 | E133: -795834.5818 | F133: 1499976.037 | G133: -795834.5818 | H133: 1499976.037 | I133: -81083434.22 | M133: 0
A134: 108 | B134: 108 | D134: 704141.4554 | E134: -810834.3422 | F134: 1514975.798 | G134: -810834.3422 | H134: 1514975.798 | I134: -82598410.02 | M134: 0
A135: 109 | B135: 109 | D135: 704141.4554 | E135: -825984.1002 | F135: 1530125.556 | G135: -825984.1002 | H135: 1530125.556 | I135: -84128535.57 | M135: 0
A136: 110 | B136: 110 | D136: 704141.4554 | E136: -841285.3557 | F136: 1545426.811 | G136: -841285.3557 | H136: 1545426.811 | I136: =+I135-H136 -> -85673962.39 | M136: 0
A137: 111 | B137: 111 | D137: 704141.4554 | E137: =+I136*$G$12 -> -856739.6239 | F137: =+D137-G137 -> 1560881.079 | G137: =IF(F136<0,E137-F136,E137) -> -856739.6239 | H137: 1560881.079 | I137: -87234843.46 | M137: 0
A138: 112 | B138: 112 | D138: 704141.4554 | E138: -872348.4346 | F138: 1576489.89 | G138: -872348.4346 | H138: =IF(F138<0,0,(D138-G138)) -> 1576489.89 | I138: =+I137-H138 -> -88811333.35 | M138: 0
A139: 113 | B139: 113 | D139: 704141.4554 | E139: -888113.3335 | F139: 1592254.789 | G139: -888113.3335 | H139: 1592254.789 | I139: -90403588.14 | M139: 0
A140: 114 | B140: 114 | D140: 704141.4554 | E140: -904035.8814 | F140: 1608177.337 | G140: -904035.8814 | H140: 1608177.337 | I140: -92011765.48 | M140: 0
A141: 115 | B141: 115 | D141: 704141.4554 | E141: -920117.6548 | F141: 1624259.11 | G141: -920117.6548 | H141: 1624259.11 | I141: -93636024.59 | M141: 0
A142: 116 | B142: 116 | D142: 704141.4554 | E142: -936360.2459 | F142: 1640501.701 | G142: -936360.2459 | H142: 1640501.701 | I142: -95276526.29 | M142: 0
A143: 117 | B143: 117 | D143: 704141.4554 | E143: -952765.2629 | F143: 1656906.718 | G143: -952765.2629 | H143: 1656906.718 | I143: -96933433.01 | M143: 0
A144: 118 | B144: 118 | D144: 704141.4554 | E144: -969334.3301 | F144: 1673475.786 | G144: -969334.3301 | H144: 1673475.786 | I144: -98606908.8 | M144: 0
A145: 119 | B145: 119 | D145: 704141.4554 | E145: -986069.088 | F145: 1690210.543 | G145: -986069.088 | H145: 1690210.543 | I145: -100297119.3 | M145: 0
A146: 120 | B146: 120 | D146: 704141.4554 | E146: -1002971.193 | F146: 1707112.649 | G146: -1002971.193 | H146: 1707112.649 | I146: -102004232 | M146: 0
